[Event "Late-Titled-Tuesday-Blitz-October-24-2023"]
[Site "Chess.com"]
[Date "2023.10.24"]
[Round "2"]
[White "DopplerCharlotteDeWitte"]
[Black "Agent-JL"]
[Result "0-1"]
[WhiteElo "2773"]
[BlackElo "2572"]
[TimeControl "180+1"]
[EndTime "14:20:00 PDT"]
[Termination "Agent-JL won on time"]

1. e4 {[%clk 0:02:57.3]} 1... c5 {[%clk 0:02:59.3]} 2. Nf3 {[%clk 0:02:57.5]}
2... e6 {[%clk 0:02:58.7]} 3. d4 {[%clk 0:02:56.1]} 3... cxd4 {[%clk 0:02:59.3]}
4. Nxd4 {[%clk 0:02:56.7]} 4... Nc6 {[%clk 0:03:00]} 5. Nc3 {[%clk 0:02:56.3]}
5... Qc7 {[%clk 0:03:00.6]} 6. Ncb5 {[%clk 0:02:55.7]} 6... Qb8 {[%clk
0:03:00.8]} 7. Bd3 {[%clk 0:02:56]} 7... a6 {[%clk 0:02:49.5]} 8. Nxc6 {[%clk
0:02:56.1]} 8... bxc6 {[%clk 0:02:49.8]} 9. Nc3 {[%clk 0:02:55.6]} 9... d5
{[%clk 0:02:50.4]} 10. O-O {[%clk 0:02:53.4]} 10... Nf6 {[%clk 0:02:50.3]} 11.
Qe2 {[%clk 0:02:50.5]} 11... Be7 {[%clk 0:02:50.4]} 12. b3 {[%clk 0:02:47.7]}
12... O-O {[%clk 0:02:46.2]} 13. Kh1 {[%clk 0:02:44.2]} 13... a5 {[%clk
0:02:45.1]} 14. f4 {[%clk 0:02:41.8]} 14... Nd7 {[%clk 0:02:43.9]} 15. Na4
{[%clk 0:02:34.1]} 15... Re8 {[%clk 0:02:30.6]} 16. c4 {[%clk 0:02:24.1]} 16...
Bb7 {[%clk 0:02:11.4]} 17. Bb2 {[%clk 0:02:20.2]} 17... Bf6 {[%clk 0:02:09.7]}
18. e5 {[%clk 0:02:18.2]} 18... Be7 {[%clk 0:02:09.9]} 19. f5 {[%clk 0:02:17.7]}
19... exf5 {[%clk 0:02:04.9]} 20. Bxf5 {[%clk 0:02:14.6]} 20... Nf8 {[%clk
0:01:57.3]} 21. Rad1 {[%clk 0:02:07.5]} 21... Bf6 {[%clk 0:01:47.6]} 22. Rde1
{[%clk 0:01:37.2]} 22... Qc7 {[%clk 0:01:37.6]} 23. Nc5 {[%clk 0:01:25.2]} 23...
Be7 {[%clk 0:01:29.6]} 24. Nxb7 {[%clk 0:01:22.2]} 24... Qxb7 {[%clk 0:01:30.5]}
25. cxd5 {[%clk 0:01:21.5]} 25... cxd5 {[%clk 0:01:29.9]} 26. e6 {[%clk
0:01:19]} 26... f6 {[%clk 0:01:13.7]} 27. Qg4 {[%clk 0:01:01.1]} 27... Qb4
{[%clk 0:00:59.3]} 28. Qg3 {[%clk 0:00:48.5]} 28... Bd6 {[%clk 0:00:40.8]} 29.
Qd3 {[%clk 0:00:44.3]} 29... Rad8 {[%clk 0:00:21.3]} 30. Bh3 {[%clk 0:00:39.9]}
30... Qh4 {[%clk 0:00:19.5]} 31. Qd4 {[%clk 0:00:18.5]} 31... Qxd4 {[%clk
0:00:16.3]} 32. Bxd4 {[%clk 0:00:19.4]} 32... Bb4 {[%clk 0:00:17]} 33. Re2
{[%clk 0:00:17.6]} 33... Re7 {[%clk 0:00:17]} 34. Rd1 {[%clk 0:00:17.1]} 34...
Ng6 {[%clk 0:00:17.2]} 35. g3 {[%clk 0:00:16.1]} 35... Rc8 {[%clk 0:00:14.7]}
36. Bg2 {[%clk 0:00:14.8]} 36... Rd8 {[%clk 0:00:13.1]} 37. Bb6 {[%clk
0:00:13.9]} 37... Rd6 {[%clk 0:00:12.8]} 38. Bg1 {[%clk 0:00:12.7]} 38... Nf8
{[%clk 0:00:06.4]} 39. Rxd5 {[%clk 0:00:11.8]} 39... Rdxe6 {[%clk 0:00:03]} 40.
Rxe6 {[%clk 0:00:10.6]} 40... Nxe6 {[%clk 0:00:03.9]} 41. Rb5 {[%clk 0:00:09.2]}
41... Kf7 {[%clk 0:00:04.4]} 42. Bd5 {[%clk 0:00:09.2]} 42... Rd7 {[%clk
0:00:05.1]} 43. Kg2 {[%clk 0:00:07.9]} 43... Ke7 {[%clk 0:00:05.7]} 44. Kf3
{[%clk 0:00:05.8]} 44... Nc7 {[%clk 0:00:06.1]} 45. Bc6 {[%clk 0:00:03.4]} 45...
Nxb5 {[%clk 0:00:06.3]} 46. Bxb5 {[%clk 0:00:04.3]} 46... Rd2 {[%clk 0:00:05.9]}
47. a4 {[%clk 0:00:03.1]} 47... Rd1 {[%clk 0:00:04.4]} 48. Bf2 {[%clk
0:00:02.7]} 48... Rb1 {[%clk 0:00:04.9]} 49. Bc4 {[%clk 0:00:03.3]} 49... Rb2
{[%clk 0:00:05.5]} 50. h4 {[%clk 0:00:02.3]} 50... g6 {[%clk 0:00:03.8]} 51. g4
{[%clk 0:00:02.3]} 51... Rc2 {[%clk 0:00:04.1]} 52. Be3 {[%clk 0:00:01.5]} 52...
Rc3 {[%clk 0:00:03.9]} 53. Ke4 {[%clk 0:00:02.4]} 53... Rc2 {[%clk 0:00:03.5]}
54. Kf3 {[%clk 0:00:02.3]} 54... Rh2 {[%clk 0:00:01.8]} 55. Bf2 {[%clk
0:00:02.3]} 55... Rh1 {[%clk 0:00:01.4]} 56. Kg2 {[%clk 0:00:02.4]} 56... Rd1
{[%clk 0:00:01.8]} 57. Kf3 {[%clk 0:00:03.3]} 57... Rd8 {[%clk 0:00:02.2]} 58.
Be3 {[%clk 0:00:03.5]} 58... Rc8 {[%clk 0:00:02.8]} 59. h5 {[%clk 0:00:03.6]}
59... Bc5 {[%clk 0:00:03]} 60. Bf4 {[%clk 0:00:03]} 60... Bd6 {[%clk 0:00:03.1]}
61. Be3 {[%clk 0:00:03]} 61... Be5 {[%clk 0:00:03]} 62. hxg6 {[%clk 0:00:02.7]}
62... hxg6 {[%clk 0:00:03.4]} 63. Bb6 {[%clk 0:00:01.9]} 63... Bc3 {[%clk
0:00:03.1]} 0-1

[Event "Late-Titled-Tuesday-Blitz-October-24-2023"]
[Site "Chess.com"]
[Date "2023.10.24"]
[Round "2"]
[White "Chempiblinka"]
[Black "ExchangeAB"]
[Result "0-1"]
[WhiteElo "2315"]
[BlackElo "2527"]
[TimeControl "180+1"]
[EndTime "14:20:07 PDT"]
[Termination "ExchangeAB won by checkmate"]

1. Nf3 {[%clk 0:02:55.3]} 1... d5 {[%clk 0:02:59.9]} 2. g3 {[%clk 0:02:55.9]}
2... Nf6 {[%clk 0:03:00.3]} 3. Bg2 {[%clk 0:02:56.6]} 3... c6 {[%clk 0:03:00.9]}
4. c4 {[%clk 0:02:57.3]} 4... dxc4 {[%clk 0:03:00]} 5. O-O {[%clk 0:02:55.7]}
5... e6 {[%clk 0:02:58.5]} 6. Na3 {[%clk 0:02:53.3]} 6... Bxa3 {[%clk
0:02:56.4]} 7. bxa3 {[%clk 0:02:54.2]} 7... b5 {[%clk 0:02:55.8]} 8. a4 {[%clk
0:02:51.5]} 8... Bb7 {[%clk 0:02:55.1]} 9. Ba3 {[%clk 0:02:50.8]} 9... Nd5
{[%clk 0:02:48]} 10. e4 {[%clk 0:02:28.7]} 10... Ne7 {[%clk 0:02:40.8]} 11. Ne5
{[%clk 0:02:11]} 11... O-O {[%clk 0:02:36.9]} 12. Qh5 {[%clk 0:01:55.6]} 12...
Nd7 {[%clk 0:02:28.4]} 13. Ng4 {[%clk 0:01:52.4]} 13... Re8 {[%clk 0:02:18.4]}
14. e5 {[%clk 0:01:51.2]} 14... g6 {[%clk 0:01:54.2]} 15. Nh6+ {[%clk
0:01:36.2]} 15... Kg7 {[%clk 0:01:53.3]} 16. Qh3 {[%clk 0:01:21.2]} 16... Nf5
{[%clk 0:01:40.9]} 17. Ng4 {[%clk 0:01:06.8]} 17... h5 {[%clk 0:01:33.3]} 18.
Ne3 {[%clk 0:00:38.4]} 18... Qb6 {[%clk 0:01:20.6]} 19. Bb2 {[%clk 0:00:23.3]}
19... Kg8 {[%clk 0:01:05]} 20. Nxf5 {[%clk 0:00:14.4]} 20... exf5 {[%clk
0:01:05.9]} 21. Rae1 {[%clk 0:00:14.7]} 21... Re6 {[%clk 0:01:05.1]} 22. Bc3
{[%clk 0:00:14.2]} 22... b4 {[%clk 0:01:03]} 23. Rb1 {[%clk 0:00:11.5]} 23... c5
{[%clk 0:01:02.5]} 24. Ba1 {[%clk 0:00:10.6]} 24... Bxg2 {[%clk 0:00:59.4]} 25.
Qxg2 {[%clk 0:00:10.8]} 25... Qc6 {[%clk 0:00:59.6]} 26. Qh3 {[%clk 0:00:10.6]}
26... Rae8 {[%clk 0:00:57.7]} 27. f4 {[%clk 0:00:09.3]} 27... a5 {[%clk
0:00:53.9]} 28. Qh4 {[%clk 0:00:08.5]} 28... Qd5 {[%clk 0:00:51.1]} 29. Rf2
{[%clk 0:00:07.8]} 29... Kg7 {[%clk 0:00:46.9]} 30. Qg5 {[%clk 0:00:07.8]} 30...
Nb6 {[%clk 0:00:40.3]} 31. h3 {[%clk 0:00:06.8]} 31... Qd8 {[%clk 0:00:33.6]}
32. Qxd8 {[%clk 0:00:05.2]} 32... Rxd8 {[%clk 0:00:34.5]} 33. g4 {[%clk
0:00:05.2]} 33... hxg4 {[%clk 0:00:34.2]} 34. hxg4 {[%clk 0:00:06.1]} 34... fxg4
{[%clk 0:00:34.4]} 35. f5 {[%clk 0:00:04.6]} 35... gxf5 {[%clk 0:00:34]} 36.
Rxf5 {[%clk 0:00:05.2]} 36... Rxd2 {[%clk 0:00:29.9]} 37. Rg5+ {[%clk
0:00:05.1]} 37... Kf8 {[%clk 0:00:30.1]} 38. Rxg4 {[%clk 0:00:05.4]} 38... c3
{[%clk 0:00:19.6]} 39. Rf1 {[%clk 0:00:05.9]} 39... Ke8 {[%clk 0:00:14]} 40.
Rg8+ {[%clk 0:00:05.2]} 40... Kd7 {[%clk 0:00:12.3]} 41. Rxf7+ {[%clk
0:00:04.8]} 41... Re7 {[%clk 0:00:12.6]} 42. Rf1 {[%clk 0:00:04.9]} 42... Nd5
{[%clk 0:00:11.6]} 43. Ra8 {[%clk 0:00:04]} 43... Rxe5 {[%clk 0:00:10.9]} 44.
Ra7+ {[%clk 0:00:04.4]} 44... Ke6 {[%clk 0:00:10.9]} 45. Ra6+ {[%clk 0:00:03.9]}
45... Kd7 {[%clk 0:00:10.9]} 46. Ra7+ {[%clk 0:00:04.3]} 46... Kc6 {[%clk
0:00:09.6]} 47. Ra6+ {[%clk 0:00:02.9]} 47... Kb7 {[%clk 0:00:09.4]} 48. Rg6
{[%clk 0:00:03.8]} 48... Rde2 {[%clk 0:00:08.6]} 49. Rg7+ {[%clk 0:00:04.7]}
49... Re7 {[%clk 0:00:08.6]} 50. Rxe7+ {[%clk 0:00:05.2]} 50... Rxe7 {[%clk
0:00:08.6]} 51. Kf2 {[%clk 0:00:06.1]} 51... Rd7 {[%clk 0:00:09]} 52. Ke2 {[%clk
0:00:07]} 52... Kc6 {[%clk 0:00:09.8]} 53. Rf2 {[%clk 0:00:07.9]} 53... Re7+
{[%clk 0:00:09.9]} 54. Kf3 {[%clk 0:00:08.1]} 54... Rf7+ {[%clk 0:00:10]} 55.
Kg2 {[%clk 0:00:09]} 55... Rxf2+ {[%clk 0:00:10.9]} 56. Kxf2 {[%clk 0:00:09.8]}
56... c4 {[%clk 0:00:11.8]} 57. Ke1 {[%clk 0:00:09.2]} 57... Kc5 {[%clk
0:00:12.4]} 58. Kd1 {[%clk 0:00:09.6]} 58... Kd4 {[%clk 0:00:13.1]} 59. Kc2
{[%clk 0:00:10.5]} 59... Ne3+ {[%clk 0:00:12.4]} 60. Kc1 {[%clk 0:00:10.3]}
60... Kd3 {[%clk 0:00:12.7]} 61. a3 {[%clk 0:00:10.7]} 61... b3 {[%clk
0:00:12.5]} 62. Kb1 {[%clk 0:00:11]} 62... b2 {[%clk 0:00:09.9]} 63. Bxb2 {[%clk
0:00:10.8]} 63... cxb2 {[%clk 0:00:10.4]} 64. Kxb2 {[%clk 0:00:11.3]} 64... Kd2
{[%clk 0:00:11]} 65. Kb1 {[%clk 0:00:09.9]} 65... c3 {[%clk 0:00:11.9]} 66. Ka1
{[%clk 0:00:09.4]} 66... c2 {[%clk 0:00:12.3]} 67. Ka2 {[%clk 0:00:10]} 67...
c1=Q {[%clk 0:00:11.7]} 68. Kb3 {[%clk 0:00:10.9]} 68... Qc3+ {[%clk 0:00:11.9]}
69. Ka2 {[%clk 0:00:10.9]} 69... Qc2+ {[%clk 0:00:11.7]} 70. Ka1 {[%clk
0:00:11.1]} 70... Qc8 {[%clk 0:00:12.1]} 71. Ka2 {[%clk 0:00:11.5]} 71... Qb8
{[%clk 0:00:12.5]} 72. Ka1 {[%clk 0:00:12]} 72... Kc2 {[%clk 0:00:12.9]} 73. Ka2
{[%clk 0:00:12.9]} 73... Qb2# {[%clk 0:00:13.1]} 0-1

[Event "Late-Titled-Tuesday-Blitz-October-24-2023"]
[Site "Chess.com"]
[Date "2023.10.24"]
[Round "2"]
[White "PushingpawnsNYC"]
[Black "Zhbugnoimt"]
[Result "1-0"]
[WhiteElo "2351"]
[BlackElo "2544"]
[TimeControl "180+1"]
[EndTime "14:20:15 PDT"]
[Termination "PushingpawnsNYC won by resignation"]

1. e4 {[%clk 0:02:56.2]} 1... c5 {[%clk 0:02:55.5]} 2. Nc3 {[%clk 0:02:45.4]}
2... Nc6 {[%clk 0:02:55.3]} 3. Bb5 {[%clk 0:02:44.9]} 3... Nd4 {[%clk
0:02:53.9]} 4. Nf3 {[%clk 0:02:43.3]} 4... e6 {[%clk 0:02:54.3]} 5. O-O {[%clk
0:02:42.8]} 5... a6 {[%clk 0:02:53.2]} 6. Bd3 {[%clk 0:02:42.2]} 6... Nc6 {[%clk
0:02:53.3]} 7. Re1 {[%clk 0:02:41.1]} 7... g5 {[%clk 0:02:53]} 8. h3 {[%clk
0:02:31.9]} 8... h5 {[%clk 0:02:52]} 9. Nh2 {[%clk 0:02:28.8]} 9... g4 {[%clk
0:02:44.6]} 10. hxg4 {[%clk 0:02:26.8]} 10... hxg4 {[%clk 0:02:45.5]} 11. Qxg4
{[%clk 0:02:24.9]} 11... Nf6 {[%clk 0:02:22.6]} 12. Qg3 {[%clk 0:02:21.1]} 12...
Nh5 {[%clk 0:02:12.7]} 13. Qe3 {[%clk 0:02:13.3]} 13... Bd6 {[%clk 0:02:04.3]}
14. g3 {[%clk 0:02:07.6]} 14... b6 {[%clk 0:01:09.3]} 15. b3 {[%clk 0:01:43.3]}
15... Rg8 {[%clk 0:01:01.3]} 16. Nf1 {[%clk 0:01:40.8]} 16... Qh4 {[%clk
0:00:53.2]} 17. Ne2 {[%clk 0:01:40.4]} 17... Ne5 {[%clk 0:00:43.2]} 18. f4
{[%clk 0:01:03.4]} 18... Nxd3 {[%clk 0:00:37]} 19. cxd3 {[%clk 0:01:02]} 19...
Nxf4 {[%clk 0:00:37.3]} 20. e5 {[%clk 0:00:40.2]} 20... Bb7 {[%clk 0:00:24.1]}
21. Nxf4 {[%clk 0:00:34.2]} 21... Bxe5 {[%clk 0:00:21.6]} 22. Kf2 {[%clk
0:00:20.1]} 22... Qh1 {[%clk 0:00:15.2]} 23. Qxe5 {[%clk 0:00:16.3]} 23... Qf3+
{[%clk 0:00:14.3]} 24. Kg1 {[%clk 0:00:14]} 24... Rxg3+ {[%clk 0:00:14.4]} 25.
Nxg3 {[%clk 0:00:14]} 25... Qxg3+ {[%clk 0:00:15.3]} 26. Kf1 {[%clk 0:00:14.2]}
26... Qf3+ {[%clk 0:00:15.8]} 27. Kg1 {[%clk 0:00:14.6]} 27... O-O-O {[%clk
0:00:16.4]} 28. Qg5 {[%clk 0:00:09.5]} 28... Rh8 {[%clk 0:00:14.5]} 29. Ng2
{[%clk 0:00:08.1]} 29... Qh3 {[%clk 0:00:11.6]} 30. Re2 {[%clk 0:00:05.8]} 30...
Qh1+ {[%clk 0:00:09.9]} 31. Kf2 {[%clk 0:00:05.3]} 31... Rh2 {[%clk 0:00:10.2]}
32. Re4 {[%clk 0:00:04.7]} 32... f5 {[%clk 0:00:08.6]} 33. Qg8+ {[%clk
0:00:03.8]} 33... Kc7 {[%clk 0:00:09]} 34. Qg3+ {[%clk 0:00:04.5]} 34... d6
{[%clk 0:00:09.4]} 35. Bb2 {[%clk 0:00:04.3]} 35... Rxg2+ {[%clk 0:00:04.4]} 36.
Qxg2 {[%clk 0:00:03.8]} 36... Qh6 {[%clk 0:00:05.3]} 37. Rh1 {[%clk 0:00:03]}
37... Qxd2+ {[%clk 0:00:04.9]} 38. Re2 {[%clk 0:00:03.3]} 38... Qf4+ {[%clk
0:00:04.2]} 39. Kg1 {[%clk 0:00:02.1]} 39... Bxg2 {[%clk 0:00:04.7]} 40. Kxg2
{[%clk 0:00:03]} 40... Qg4+ {[%clk 0:00:05]} 41. Kf2 {[%clk 0:00:03.1]} 41...
Qf4+ {[%clk 0:00:05.9]} 42. Ke1 {[%clk 0:00:03.4]} 42... Kc6 {[%clk 0:00:06.8]}
43. Rf1 {[%clk 0:00:03.5]} 43... Qg3+ {[%clk 0:00:07.3]} 44. Rff2 {[%clk
0:00:03.7]} 44... f4 {[%clk 0:00:07.4]} 45. Bf6 {[%clk 0:00:03.3]} 45... e5
{[%clk 0:00:08.3]} 46. Kd1 {[%clk 0:00:02.3]} 46... Qg1+ {[%clk 0:00:08.8]} 47.
Kd2 {[%clk 0:00:02.5]} 47... Qg4 {[%clk 0:00:09.7]} 48. Bxe5 {[%clk 0:00:02.9]}
48... dxe5 {[%clk 0:00:10]} 49. Rxe5 {[%clk 0:00:03.6]} 49... Qg3 {[%clk
0:00:10.8]} 50. Ree2 {[%clk 0:00:03.9]} 50... Kb5 {[%clk 0:00:11.2]} 51. Rg2
{[%clk 0:00:04.2]} 51... Qf3 {[%clk 0:00:11.6]} 52. Rgf2 {[%clk 0:00:05]} 52...
Qg4 {[%clk 0:00:11.8]} 53. Re4 {[%clk 0:00:05.2]} 53... Qf5 {[%clk 0:00:12.7]}
54. Rexf4 {[%clk 0:00:05.4]} 54... Qe5 {[%clk 0:00:12.8]} 55. a4+ {[%clk
0:00:04.8]} 55... Ka5 {[%clk 0:00:12.1]} 56. b4+ {[%clk 0:00:05.3]} 56... Kxa4
{[%clk 0:00:10.8]} 57. bxc5+ {[%clk 0:00:04.9]} 57... Kb3 {[%clk 0:00:11.4]} 58.
c6 {[%clk 0:00:05.1]} 58... Qc3+ {[%clk 0:00:10.6]} 59. Ke2 {[%clk 0:00:05.2]}
59... Qxc6 {[%clk 0:00:11.1]} 60. d4 {[%clk 0:00:04.6]} 60... Qc4+ {[%clk
0:00:08.7]} 61. Ke1 {[%clk 0:00:04.4]} 61... Qc1+ {[%clk 0:00:08]} 62. Ke2
{[%clk 0:00:04.5]} 62... a5 {[%clk 0:00:08.6]} 63. d5 {[%clk 0:00:04.7]} 63...
a4 {[%clk 0:00:08.5]} 64. Kd3 {[%clk 0:00:05.1]} 64... Qc3+ {[%clk 0:00:08.2]}
65. Ke4 {[%clk 0:00:05.5]} 65... Qe1+ {[%clk 0:00:08.1]} 66. Kf5 {[%clk
0:00:05.5]} 66... a3 {[%clk 0:00:08.6]} 67. R4f3+ {[%clk 0:00:05.2]} 67... Kc4
{[%clk 0:00:08]} 68. d6 {[%clk 0:00:05.3]} 68... Qd1 {[%clk 0:00:06.8]} 69. Ke6
{[%clk 0:00:04.9]} 69... Qd5+ {[%clk 0:00:06.8]} 70. Ke7 {[%clk 0:00:05.3]}
70... Kb4 {[%clk 0:00:06.9]} 71. Rf4+ {[%clk 0:00:05.4]} 71... Ka5 {[%clk
0:00:06.6]} 72. Rf5 {[%clk 0:00:05.6]} 72... Qxf5 {[%clk 0:00:02.7]} 73. Rxf5+
{[%clk 0:00:06.5]} 73... Ka4 {[%clk 0:00:03.4]} 74. Rf4+ {[%clk 0:00:06.3]}
74... Kb3 {[%clk 0:00:03.2]} 75. Rf3+ {[%clk 0:00:06.7]} 75... Ka4 {[%clk
0:00:03.6]} 76. Rxa3+ {[%clk 0:00:06.8]} 76... Kxa3 {[%clk 0:00:04]} 77. d7
{[%clk 0:00:07.6]} 77... b5 {[%clk 0:00:04.9]} 78. d8=Q {[%clk 0:00:08.2]} 78...
b4 {[%clk 0:00:05.8]} 79. Qa5+ {[%clk 0:00:08.5]} 79... Kb3 {[%clk 0:00:06.5]}
80. Kd6 {[%clk 0:00:09.3]} 80... Kc3 {[%clk 0:00:06.8]} 81. Kc5 {[%clk
0:00:09.9]} 1-0

[Event "Late-Titled-Tuesday-Blitz-October-24-2023"]
[Site "Chess.com"]
[Date "2023.10.24"]
[Round "2"]
[White "Tonychess32"]
[Black "FM_Kappeler"]
[Result "1-0"]
[WhiteElo "2517"]
[BlackElo "2292"]
[TimeControl "180+1"]
[EndTime "14:20:19 PDT"]
[Termination "Tonychess32 won by resignation"]

1. e4 {[%clk 0:03:00.9]} 1... c5 {[%clk 0:02:58.8]} 2. Nf3 {[%clk 0:03:00.9]}
2... e6 {[%clk 0:02:59]} 3. c3 {[%clk 0:03:00.7]} 3... d5 {[%clk 0:02:56.9]} 4.
exd5 {[%clk 0:03:00.6]} 4... exd5 {[%clk 0:02:57.1]} 5. d4 {[%clk 0:03:01]} 5...
Nc6 {[%clk 0:02:56.8]} 6. Bd3 {[%clk 0:03:01.2]} 6... Bd6 {[%clk 0:02:54.8]} 7.
O-O {[%clk 0:03:01.3]} 7... Nge7 {[%clk 0:02:54.6]} 8. Re1 {[%clk 0:03:01.7]}
8... O-O {[%clk 0:02:54.2]} 9. dxc5 {[%clk 0:03:02]} 9... Bxc5 {[%clk
0:02:53.6]} 10. Nbd2 {[%clk 0:03:02.3]} 10... Re8 {[%clk 0:02:35.5]} 11. Nb3
{[%clk 0:03:02.4]} 11... Bb6 {[%clk 0:02:34.4]} 12. Bf4 {[%clk 0:02:56.3]} 12...
Ng6 {[%clk 0:02:28.5]} 13. Rxe8+ {[%clk 0:02:54.6]} 13... Qxe8 {[%clk
0:02:28.4]} 14. Bg3 {[%clk 0:02:54.8]} 14... Bg4 {[%clk 0:02:23.7]} 15. h3
{[%clk 0:02:53.8]} 15... Bh5 {[%clk 0:02:22.8]} 16. Be2 {[%clk 0:02:46]} 16...
Rd8 {[%clk 0:02:17.2]} 17. Qd2 {[%clk 0:02:33.3]} 17... Qe7 {[%clk 0:01:52.2]}
18. Re1 {[%clk 0:02:24.7]} 18... Qf6 {[%clk 0:01:50.3]} 19. Nfd4 {[%clk
0:02:12.8]} 19... Bxe2 {[%clk 0:01:44.5]} 20. Rxe2 {[%clk 0:02:12.8]} 20... h5
{[%clk 0:01:35.6]} 21. Nf3 {[%clk 0:01:46.5]} 21... h4 {[%clk 0:01:29.7]} 22.
Bh2 {[%clk 0:01:46]} 22... Nce7 {[%clk 0:01:14]} 23. Nbd4 {[%clk 0:01:23.6]}
23... Nf5 {[%clk 0:01:13.7]} 24. Re1 {[%clk 0:01:08]} 24... Nd6 {[%clk
0:01:10.8]} 25. Bxd6 {[%clk 0:01:06.1]} 25... Qxd6 {[%clk 0:01:07.5]} 26. Qg5
{[%clk 0:01:02.2]} 26... Bxd4 {[%clk 0:00:41.1]} 27. Nxd4 {[%clk 0:00:57.3]}
27... Qb6 {[%clk 0:00:33.7]} 28. b4 {[%clk 0:00:48.1]} 28... a5 {[%clk
0:00:32.4]} 29. a3 {[%clk 0:00:48.2]} 29... Rc8 {[%clk 0:00:31.9]} 30. Re3
{[%clk 0:00:45.6]} 30... axb4 {[%clk 0:00:28]} 31. axb4 {[%clk 0:00:46.5]} 31...
Qa6 {[%clk 0:00:27.5]} 32. Qxd5 {[%clk 0:00:28.4]} 32... Qa1+ {[%clk 0:00:26.6]}
33. Kh2 {[%clk 0:00:29]} 33... Qf1 {[%clk 0:00:22.4]} 34. Rf3 {[%clk 0:00:22.3]}
34... Rf8 {[%clk 0:00:19.5]} 35. Nf5 {[%clk 0:00:18.5]} 35... Qe2 {[%clk
0:00:16.5]} 36. Nd6 {[%clk 0:00:17.5]} 36... Qe5+ {[%clk 0:00:15.4]} 37. Qxe5
{[%clk 0:00:17.4]} 37... Nxe5 {[%clk 0:00:15.9]} 38. Re3 {[%clk 0:00:18]} 38...
Rd8 {[%clk 0:00:08.3]} 39. Nxb7 {[%clk 0:00:15.7]} 39... Rd7 {[%clk 0:00:07.3]}
40. Rxe5 {[%clk 0:00:15.4]} 40... Rxb7 {[%clk 0:00:07.4]} 41. Rc5 {[%clk
0:00:16]} 41... Kf8 {[%clk 0:00:07.1]} 42. g4 {[%clk 0:00:15.6]} 42... hxg3+
{[%clk 0:00:06.1]} 43. Kxg3 {[%clk 0:00:16.5]} 43... Ke7 {[%clk 0:00:06.2]} 44.
Kf4 {[%clk 0:00:16.7]} 44... Kd6 {[%clk 0:00:06.4]} 45. Ke4 {[%clk 0:00:16.4]}
45... Re7+ {[%clk 0:00:06.5]} 46. Kd3 {[%clk 0:00:16.3]} 46... Re6 {[%clk
0:00:06.2]} 47. Rh5 {[%clk 0:00:15.6]} 47... g6 {[%clk 0:00:05.9]} 48. Rh4
{[%clk 0:00:15.4]} 48... Rf6 {[%clk 0:00:05.9]} 49. Ke3 {[%clk 0:00:15.4]} 49...
Kc6 {[%clk 0:00:06.2]} 50. Rf4 {[%clk 0:00:14.4]} 50... Re6+ {[%clk 0:00:06.4]}
51. Kd3 {[%clk 0:00:14.6]} 51... f5 {[%clk 0:00:06.2]} 52. Rc4+ {[%clk
0:00:13.4]} 52... Kb6 {[%clk 0:00:05.4]} 53. Rd4 {[%clk 0:00:12.9]} 53... g5
{[%clk 0:00:05.2]} 54. Rd5 {[%clk 0:00:12.8]} 54... Rh6 {[%clk 0:00:04.9]} 55.
Rxf5 {[%clk 0:00:11.9]} 55... Rxh3+ {[%clk 0:00:05]} 56. Kc4 {[%clk 0:00:12.5]}
56... g4 {[%clk 0:00:05.4]} 57. Rg5 {[%clk 0:00:11.7]} 57... Rf3 {[%clk
0:00:04.2]} 58. Rxg4 {[%clk 0:00:11.2]} 58... Rxf2 {[%clk 0:00:04.7]} 59. Rg6+
{[%clk 0:00:11.7]} 59... Kc7 {[%clk 0:00:04.8]} 60. Kb5 {[%clk 0:00:11.8]} 60...
Rf5+ {[%clk 0:00:04.8]} 61. Kc4 {[%clk 0:00:11.5]} 61... Rf4+ {[%clk 0:00:04.7]}
62. Kb3 {[%clk 0:00:11.7]} 62... Rf3 {[%clk 0:00:04.9]} 63. Rg4 {[%clk
0:00:11.6]} 63... Rf5 {[%clk 0:00:04.6]} 64. Rd4 {[%clk 0:00:11.9]} 64... Kc6
{[%clk 0:00:04.7]} 65. Kc4 {[%clk 0:00:12.2]} 65... Rh5 {[%clk 0:00:03.8]} 66.
Rf4 {[%clk 0:00:12.2]} 66... Kb6 {[%clk 0:00:04.1]} 67. Rf6+ {[%clk 0:00:11.8]}
67... Kc7 {[%clk 0:00:03.5]} 68. Kb3 {[%clk 0:00:12.2]} 68... Rh4 {[%clk
0:00:03.9]} 69. b5 {[%clk 0:00:10.4]} 69... Rh5 {[%clk 0:00:03.7]} 70. c4 {[%clk
0:00:10.4]} 70... Kb7 {[%clk 0:00:04]} 71. Kb4 {[%clk 0:00:10.7]} 71... Rg5
{[%clk 0:00:04.4]} 72. Re6 {[%clk 0:00:10.3]} 72... Rh5 {[%clk 0:00:04.6]} 73.
Re4 {[%clk 0:00:10]} 73... Rg5 {[%clk 0:00:04.9]} 74. Rd4 {[%clk 0:00:10.3]}
74... Rh5 {[%clk 0:00:05.4]} 75. Rd5 {[%clk 0:00:10.3]} 75... Rg5 {[%clk
0:00:05.9]} 76. Rxg5 {[%clk 0:00:09.6]} 1-0